{"text_format":"1","workbook":"xlsx","n_sheets":2,"sheets":["Feuil1","Feuil2"],"not_rendered":{"charts":0,"images":0,"macros":1,"external_links":0,"defined_names":3,"comments":0,"pivot_tables":0},"unopened":[],"bounds":{"document_bytes":16777216,"sheet_cells":100000,"rows_first":2000,"rows_last":500,"rows_between":2000,"halvings":0,"cell_chars":16384,"cell_head_chars":4096},"cells_cut":0,"cells_raw":0,"read":"whole","date_system":"1900"}

{"sheet":"Feuil1","index":0,"n_rows":12,"n_cols":35,"rows_kept":12,"cut":false,"hidden":false,"merged":[]}
[3,1,null,null,null,null,null,null,null,null,null,null,null,null,null,null,null,null,null,null,null,null,null,null,null,null,null,null,null,null,null,null,null,"Janvier",2024]
[1,1,null,null,null,null,null,null,null,null,null,null,null,null,null,null,null,null,null,null,null,null,null,null,null,null,null,null,null,null,null,null,null,"Février",2025]
[null,null,null,null,null,null,null,null,null,null,null,null,null,null,null,null,null,null,null,null,null,null,null,null,null,null,null,null,null,null,null,null,null,"Mars",2026]
[null,null,null,null,null,null,null,{"$f":"\"Période du \"&TEXT(DATE(A2+2023,A1,1),\"jj mmmm aaaa\")&\" au \"&TEXT(DATE(A2+2023,A1+1,1)-1,\"jj mmmm aaaa\")","v":"Période du 01 mars 2024 au 31 mars 2024"},null,null,null,null,null,null,null,null,null,null,null,null,null,null,null,null,null,null,null,null,null,null,null,null,null,"Avril",2027]
[null,null,null,null,null,null,null,null,null,null,null,null,null,null,null,null,null,null,null,null,null,null,null,null,null,null,null,null,null,null,null,null,null,"Mai",2028]
[null,{"$f":"DATE(A2+2023,A1,1)","v":"2024-03-01"},{"$f":"B6+1","v":"2024-03-02"},{"$f":"C6+1","v":"2024-03-03"},"2024-03-04","2024-03-05","2024-03-06","2024-03-07","2024-03-08","2024-03-09","2024-03-10","2024-03-11","2024-03-12","2024-03-13","2024-03-14","2024-03-15","2024-03-16","2024-03-17","2024-03-18","2024-03-19","2024-03-20","2024-03-21","2024-03-22","2024-03-23","2024-03-24","2024-03-25","2024-03-26","2024-03-27","2024-03-28",{"$f":"IF(MONTH(AC6+1)=MONTH(AC6),AC6+1,\"\")","v":"2024-03-29"},{"$f":"IF(AD6=\"\",\"\",IF(MONTH(AD6+1)=MONTH(AD6),AD6+1,\"\"))","v":"2024-03-30"},{"$f":"IF(AE6=\"\",\"\",IF(MONTH(AE6+1)=MONTH(AE6),AE6+1,\"\"))","v":"2024-03-31"},null,"Juin",2029]
["DUFFAU Michael",null,null,null,null,null,null,null,null,null,null,null,null,null,null,null,null,null,null,null,null,null,null,null,null,null,null,null,null,null,null,null,null,"Juillet",2030]
["ACHARD Patrick",null,null,null,null,null,null,null,null,null,null,null,null,null,null,null,null,null,null,null,null,null,null,null,null,null,null,null,null,null,null,null,null,"Août",2031]
["BOUZARD Enzo",null,null,null,null,null,null,null,null,null,null,null,null,null,null,null,null,null,null,null,null,null,null,null,null,null,null,null,null,null,null,null,null,"Septembre",2032]
["PRECES DA COSTA Frederico",null,null,null,null,null,null,null,null,null,null,null,null,null,null,null,null,null,null,null,null,null,null,null,null,null,null,null,null,null,null,null,null,"Octobre",2033]
["SANGARÉ Mahamadou",null,null,null,null,null,null,null,null,null,null,null,null,null,null,null,null,null,null,null,null,null,null,null,null,null,null,null,null,null,null,null,null,"Novembre",2034]
[null,null,null,null,null,null,null,null,null,null,null,null,null,null,null,null,null,null,null,null,null,null,null,null,null,null,null,null,null,null,null,null,null,"Décembre",2035]

{"sheet":"Feuil2","index":1,"n_rows":15,"n_cols":3,"rows_kept":15,"cut":false,"hidden":false,"merged":[]}
["Année",{"$f":"Feuil1!A2+2023","v":2024}]
[]
["1er Janvier",{"$f":"DATE($B$1,1,1)","v":"2024-01-01"},{"$f":"_xlfn.FORMULATEXT(B3)","v":"=DATE($B$1;1;1)"}]
["Pâques",{"$f":"FLOOR(DAY(MINUTE(B1/38)/2+56)&\"/5/\"&B1,7)-34","v":"2024-03-31"},{"$f":"_xlfn.FORMULATEXT(B4)","v":"=PLANCHER(JOUR(MINUTE(B1/38)/2+56)&\"/5/\"&B1;7)-34"}]
["Lundi de Pâques",{"$f":"B4+1","v":"2024-04-01"},"=B4+1"]
["1er Mai",{"$f":"DATE($B$1,5,1)","v":"2024-05-01"},"=DATE($B$1;5;1)"]
["2024-05-08",{"$f":"DATE($B$1,5,8)","v":"2024-05-08"},"=DATE($B$1;5;8)"]
["Ascenscion",{"$f":"B4+39","v":"2024-05-09"},"=B4+39"]
["Pentecôte",{"$f":"B4+49","v":"2024-05-19"},"=B4+49"]
["Lundi de Pentecôte",{"$f":"B4+50","v":"2024-05-20"},"=B4+50"]
["2024-07-14",{"$f":"DATE($B$1,7,14)","v":"2024-07-14"},"=DATE($B$1;7;14)"]
["2024-08-15",{"$f":"DATE($B$1,8,15)","v":"2024-08-15"},"=DATE($B$1;8;15)"]
["Toussaint",{"$f":"DATE($B$1,11,1)","v":"2024-11-01"},"=DATE($B$1;11;1)"]
["Armistice 1918",{"$f":"DATE($B$1,11,11)","v":"2024-11-11"},"=DATE($B$1;11;11)"]
["Jour de Noël",{"$f":"DATE($B$1,12,25)","v":"2024-12-25"},"=DATE($B$1;12;25)"]